bitfinex-derivatives/quotes_BNBF0:USTF0_20250908
["timestamp","ask_amount","ask_price","bid_price","bid_amount"]
[1757296970272,1.00985849,876.64,875.67,1.154]
[1757296971473,1.00985849,876.66,875.67,1.154]
[1757296974974,1.00985849,876.55,875.67,1.154]
[1757296975378,1.00985849,876.59,875.67,1.154]
[1757296975679,1.00985849,876.57,875.67,1.154]
[1757296975875,1.00985849,876.56,875.67,1.154]
[1757296976376,1.00985849,876.55,875.67,1.154]
[1757296976676,1.00985849,876.56,875.67,1.154]
[1757296977580,1.00985849,876.63,875.67,1.154]
[1757296977780,1.00985849,876.33,875.67,1.154]
[1757296978076,1.00985849,876.34,875.67,1.154]
[1757296978680,1.00985849,876.34,875.66,0.19831489]
[1757296979176,1.00985849,876.33,875.66,0.19831489]
[1757296980280,1.00985849,876.34,875.66,0.19831489]
[1757296980580,1.00985849,876.32,875.66,0.19831489]
[1757296980877,1.00985849,876.3,875.66,0.19831489]
[1757296981274,1.00985849,876.29,875.66,0.19831489]
[1757296982381,1.00985849,876.28,875.67,0.977]
[1757296983677,1.00985849,876.23,875.67,0.977]
[1757296983879,1.00985849,876.21,875.67,0.977]
[1757296984278,1.00985849,876.16,875.67,0.977]
[1757296984880,1.00985849,876.13,875.67,0.977]
[1757296987682,1.00985849,876.2,875.67,0.977]
[1757296988281,1.00985849,876.21,875.67,0.977]
[1757296988783,1.00985849,876.26,875.67,0.977]
[1757296989984,1.00985849,876.19,875.67,0.977]
[1757296990479,1.00985849,876.21,875.67,0.977]
[1757296991285,1.00985849,876.18,875.67,0.977]
[1757296991486,2.52770234,877.51,875.67,0.977]
[1757296991487,1.00985849,876.12,875.67,0.977]
[1757296991686,1.00985849,876.1,875.67,0.977]
[1757296992387,1.00985849,876.09,875.67,0.977]
[1757296993387,1.00985849,876.11,875.67,0.977]
[1757296994183,1.00985849,876.12,875.67,0.977]
[1757296995686,1.00985849,876.1,875.67,0.977]
[1757296996283,1.00985849,876.11,875.67,0.977]
[1757296997688,1.00985849,876.1,875.67,0.977]
[1757296999492,1.00985849,876.1,875.66,0.19831489]
[1757296999692,1.00985849,876.08,875.66,0.19831489]
[1757296999889,1.00985849,876.01,875.66,0.19831489]
[1757297000589,1.00985849,876.05,875.66,0.19831489]
[1757297001093,1.00985849,876.04,875.66,0.19831489]
[1757297001688,1.00985849,876.01,875.66,0.19831489]
[1757297005394,1.00985849,876.0,875.66,0.19831489]
[1757297006292,1.00985849,876.01,875.66,0.19831489]
[1757297007091,1.00985849,876.0,875.66,0.19831489]
[1757297007297,1.00985849,876.01,875.66,0.19831489]
[1757297007594,1.00985849,876.04,875.66,0.19831489]
[1757297007790,1.00985849,875.88,875.66,0.19831489]
[1757297007992,1.00985849,875.88,875.59,0.821]
[1757297008495,1.00985849,875.89,875.59,0.821]
[1757297008691,1.00985849,875.89,875.66,0.19837311]
[1757297009395,1.00985849,875.9,875.66,0.19837311]
[1757297009891,1.00985849,875.89,875.66,0.19837311]
[1757297010399,1.00985849,875.8,875.66,0.19837311]
[1757297010792,1.00985849,875.82,875.66,0.19837311]
[1757297011294,1.00985849,875.83,875.66,0.19837311]
[1757297011696,1.00985849,875.79,875.66,0.19837311]
[1757297011993,1.00985849,875.8,875.66,0.19837311]
[1757297012394,1.00985849,875.84,875.66,0.19837311]
[1757297012893,1.00985849,875.83,875.66,0.19837311]
[1757297013597,1.00985849,875.89,875.66,0.19837311]
[1757297013998,1.00985849,875.9,875.66,0.19837311]
[1757297014199,5.05540469,877.68,875.66,0.19837311]
[1757297014200,1.00985849,875.93,875.66,0.19837311]
[1757297015898,1.00985849,875.92,875.66,0.19837311]
[1757297017697,1.00985849,876.18,875.66,0.19837311]
[1757297019801,1.00985849,876.19,875.66,0.19837311]
[1757297020197,1.00985849,876.2,875.66,0.19837311]
[1757297020697,1.00985849,876.18,875.66,0.19837311]
[1757297021198,1.00985849,876.19,875.66,0.19837311]
[1757297022398,1.00985849,876.21,875.66,0.19837311]
[1757297022799,1.00985849,876.2,875.66,0.19837311]
[1757297023004,1.00985849,876.25,875.66,0.19837311]
[1757297023402,1.00985849,876.21,875.66,0.19837311]
[1757297023606,1.00985849,876.24,875.66,0.19837311]
[1757297024505,1.00985849,876.23,875.66,0.19837311]
[1757297024702,1.00985849,876.15,875.66,0.19837311]
[1757297026908,2.52770234,877.24,875.66,0.19837311]
[1757297026909,1.00985849,876.16,875.66,0.19837311]
[1757297027607,1.00985849,876.17,875.66,0.19837311]
[1757297027810,1.00985849,875.81,875.66,0.19837311]
[1757297028310,1.00985849,875.85,875.66,0.19837311]
[1757297028508,1.00985849,875.78,875.66,0.19837311]
[1757297028810,1.00985849,875.77,875.66,0.19837311]
[1757297029109,1.00985849,875.75,875.66,0.19837311]
[1757297029310,1.00985849,875.74,875.66,0.19837311]
[1757297032408,1.00985849,875.73,875.66,0.19837311]
[1757297033115,1.00985849,875.74,875.66,0.19837311]
[1757297033314,1.00985849,875.73,875.66,0.19837311]
[1757297033809,1.00985849,875.74,875.66,0.19837311]
[1757297034513,1.00985849,875.72,875.66,0.19837311]
[1757297035311,1.00985849,875.71,875.66,0.19837311]
[1757297035710,0.75408364,875.69,875.66,0.19837311]
[1757297036212,1.5166214,875.86,875.66,0.19837311]
[1757297036416,1.5166214,875.85,875.66,0.19837311]
[1757297037717,1.5166214,875.91,875.66,0.19837311]
[1757297038320,1.5166214,875.9,875.66,0.19837311]
[1757297038717,1.5166214,875.87,875.66,0.19837311]
[1757297039021,1.5166214,875.85,875.66,0.19837311]
[1757297039217,1.5166214,875.84,875.66,0.19837311]
[1757297042225,1.5166214,875.83,875.66,0.19837311]
[1757297042826,1.5166214,875.82,875.66,0.19837311]
[1757297043226,1.5166214,875.81,875.66,0.19837311]
[1757297043522,1.5166214,875.8,875.66,0.19837311]
[1757297043725,1.14339392,875.8,875.66,0.19837311]
[1757297044227,2.52770234,876.37,875.66,0.19837311]
[1757297044422,2.52770234,876.36,875.66,0.19837311]
[1757297045025,2.52770234,876.37,875.66,0.19837311]
[1757297045526,2.52770234,876.35,875.66,0.19837311]
[1757297046428,2.52770234,876.33,875.66,0.19837311]
[1757297046928,2.52770234,876.39,875.66,0.19837311]
[1757297047422,2.52770234,876.38,875.66,0.19837311]
[1757297047924,3.53878328,876.67,875.66,0.19837311]
[1757297047925,2.52770234,876.36,875.66,0.19837311]
[1757297048630,2.52770234,876.34,875.66,0.19837311]
[1757297049727,2.52770234,876.33,875.66,0.19837311]
[1757297050530,2.52770234,876.63,875.66,0.19837311]
[1757297051628,2.52770234,876.64,875.67,1.181]
[1757297052734,2.52770234,876.98,875.67,1.181]
[1757297053734,2.52770234,877.06,875.67,1.181]
[1757297056731,2.52770234,877.05,875.67,1.181]
[1757297057834,2.52770234,877.02,875.67,1.181]
[1757297058434,2.52770234,877.04,875.67,1.181]
[1757297058838,2.52770234,877.03,875.67,1.181]
[1757297061637,2.52770234,877.4,875.67,1.181]
[1757297062140,2.52770234,877.47,875.67,1.181]
[1757297062340,0.19826461,876.98,875.67,1.181]
[1757297063737,1.5132399,876.32,875.67,1.181]
[1757297064242,1.5132399,876.33,875.67,1.181]
[1757297065042,1.5132399,876.32,875.67,1.181]
[1757297065438,0.19826461,876.98,875.67,1.181]
[1757297065439,1.5132399,876.3,875.67,1.181]
[1757297065937,1.00869381,876.05,875.67,1.181]
[1757297067644,1.00869381,875.88,875.67,1.181]
[1757297071149,1.00869381,875.83,875.67,1.181]
[1757297071444,1.00869381,875.72,875.67,1.181]
[1757297072346,1.00869381,876.09,875.67,1.181]
[1757297072849,1.00869381,876.05,875.67,1.181]
[1757297073447,1.00869381,876.06,875.67,1.181]
[1757297074246,1.00869381,876.04,875.67,1.181]
[1757297074450,1.00869381,876.06,875.67,1.181]
[1757297074949,1.00869381,876.09,875.67,1.181]
[1757297075346,1.00869381,876.1,875.67,1.181]
[1757297075746,1.00869381,876.11,875.67,1.181]
[1757297076350,1.00869381,876.13,875.67,1.181]
[1757297076746,1.00869381,876.14,875.67,1.181]
[1757297077350,1.00869381,876.16,875.67,1.181]
[1757297077847,1.00869381,876.3,875.67,1.181]
[1757297078350,1.00869381,876.31,875.67,1.181]
[1757297079348,1.00869381,876.32,875.67,1.181]
[1757297080752,1.00869381,876.34,875.67,1.181]
[1757297082448,1.00869381,876.28,875.67,1.181]
[1757297082653,1.00869381,876.27,875.67,1.181]
[1757297083252,1.00869381,876.28,875.67,1.181]
[1757297083455,1.00869381,876.31,875.67,1.181]
[1757297083648,1.00869381,876.45,875.67,1.181]
[1757297083853,1.00869381,876.53,875.67,1.181]
[1757297084354,1.00869381,876.54,875.67,1.181]
[1757297084654,1.00869381,876.52,875.67,1.181]
[1757297084953,1.00869381,876.54,875.67,1.181]
[1757297085154,1.00869381,876.53,875.67,1.181]
[1757297085452,0.19824541,877.58,875.67,1.181]
[1757297085453,1.00869381,876.42,875.67,1.181]
[1757297085650,1.00869381,876.41,875.67,1.181]
[1757297086453,1.00869381,876.43,875.67,1.181]
[1757297087259,1.00869381,876.44,875.67,1.181]
[1757297087759,1.00869381,876.39,875.67,1.181]
[1757297088358,1.00869381,876.4,875.67,1.181]
[1757297088559,1.00869381,876.41,875.67,1.181]
[1757297088856,1.00869381,876.42,875.66,0.19837311]
[1757297089256,1.00869381,876.43,875.66,0.19837311]
[1757297090258,1.00869381,876.44,875.66,0.19837311]
[1757297090658,1.00869381,876.45,875.66,0.19837311]
[1757297091557,1.00869381,876.45,875.67,1.111]
[1757297092558,1.00869381,876.46,875.67,1.111]
[1757297093358,1.00869381,876.47,875.67,1.111]
[1757297093757,1.00869381,876.45,875.67,1.111]
[1757297094560,1.00869381,876.43,875.67,1.111]
[1757297094761,1.00869381,876.42,875.67,1.111]
[1757297095664,1.00869381,876.43,875.67,1.111]
[1757297096859,1.00869381,876.44,875.67,1.111]
[1757297097864,1.00869381,876.6,875.67,1.111]
[1757297098061,1.00869381,876.61,875.67,1.111]
[1757297098262,1.5132399,876.78,875.67,1.111]
[1757297098263,1.00869381,876.62,875.67,1.111]
[1757297098463,1.00869381,876.6,875.67,1.111]
[1757297098667,1.00869381,876.59,875.67,1.111]
[1757297099569,1.00869381,876.6,875.67,1.111]
[1757297100570,1.00869381,876.58,875.67,1.111]
[1757297101266,1.00869381,876.59,875.67,1.111]
[1757297103074,1.00869381,876.6,875.67,1.111]
[1757297103474,2.52770234,877.39,875.67,1.111]
[1757297103674,0.19824541,877.58,875.67,1.111]
[1757297104578,1.00260575,876.74,875.67,1.111]
[1757297107276,1.00260575,876.94,875.67,1.111]
[1757297107574,1.00260575,876.92,875.67,1.111]
[1757297107779,1.00260575,877.16,875.67,1.111]
[1757297107978,1.00260575,877.2,875.67,1.111]
[1757297108175,1.00260575,877.1,875.67,1.111]
[1757297108375,1.00260575,877.11,875.67,1.111]
[1757297108879,1.00260575,877.06,875.67,1.111]
[1757297109079,1.00260575,877.12,875.67,1.111]
[1757297109481,1.00260575,877.13,875.67,1.111]
[1757297110180,1.00260575,877.16,875.67,1.111]
[1757297110783,1.00260575,877.14,875.67,1.111]
[1757297111079,1.00260575,877.13,875.67,1.111]
[1757297111279,1.00260575,877.14,875.67,1.111]
[1757297112279,1.00260575,877.15,875.67,1.111]
[1757297112478,1.00260575,877.12,875.67,1.111]
[1757297113578,1.00260575,877.15,875.67,1.111]
[1757297114681,1.00260575,877.16,875.67,1.111]
[1757297117282,1.00260575,877.15,875.67,1.111]
[1757297117687,1.00260575,876.89,875.67,1.111]
[1757297118284,1.00260575,876.88,875.67,1.111]
[1757297120384,0.19820364,877.76,875.67,1.111]
[1757297120385,1.00260575,876.87,875.67,1.111]
[1757297121287,1.00260575,876.86,875.67,1.111]
[1757297122386,1.00260575,876.87,875.67,1.111]
[1757297123285,1.00260575,876.86,875.67,1.111]
[1757297123589,1.00260575,876.85,875.66,0.19837311]
[1757297123890,1.00260575,876.89,875.66,0.19837311]
[1757297124187,1.00260575,876.92,875.66,0.19837311]
[1757297124489,1.00260575,876.91,875.66,0.19837311]
[1757297125390,1.00260575,876.9,875.66,0.19837311]
[1757297126992,1.00260575,876.9,875.67,0.854]
[1757297127393,1.00260575,876.89,875.67,0.854]
[1757297127694,1.00260575,876.95,875.67,0.854]
[1757297128391,1.00260575,876.94,875.67,0.854]
[1757297128590,1.00260575,876.96,875.67,0.854]
[1757297128893,1.00260575,876.95,875.67,0.854]
[1757297130294,1.00260575,876.94,875.67,0.854]
[1757297131289,1.00260575,876.93,875.67,0.854]
[1757297132390,1.00260575,876.92,875.67,0.854]
[1757297132991,1.00260575,877.0,875.67,0.854]
[1757297133490,1.00260575,876.99,875.67,0.854]
[1757297134294,1.00260575,876.98,875.67,0.854]
[1757297136297,1.00260575,876.97,875.67,0.854]
[1757297137693,1.00260575,876.96,875.67,0.854]
[1757297137892,1.00260575,876.94,875.67,0.854]
[1757297138492,1.00260575,876.93,875.67,0.854]
[1757297139594,1.00260575,876.91,875.67,0.854]
[1757297140097,1.00260575,876.85,875.67,0.854]
[1757297140295,1.00260575,876.84,875.67,0.854]
[1757297142201,1.00260575,876.83,875.67,0.854]
[1757297142397,1.00260575,876.82,875.67,0.854]
[1757297142896,1.00260575,876.66,875.67,0.854]
[1757297143198,1.00260575,876.66,875.66,0.19837311]
[1757297143402,1.00260575,876.65,875.66,0.19837311]
[1757297145296,1.00260575,876.64,875.66,0.19837311]
[1757297145700,1.00260575,876.67,875.66,0.19837311]
[1757297146597,1.00260575,876.66,875.66,0.19837311]
[1757297146798,1.00260575,876.66,875.67,1.124]
[1757297147600,1.00260575,876.87,875.78,0.76127047]
[1757297148409,1.00260575,876.86,875.78,0.76127047]
[1757297149403,1.00260575,876.86,875.79,0.76127047]
[1757297150302,1.00260575,876.85,875.79,0.76127047]
[1757297151208,1.00260575,877.02,875.72,0.76127047]
[1757297151410,1.00260575,876.94,875.67,1.124]
[1757297151610,1.00260575,876.93,875.67,1.124]
[1757297152310,1.00260575,876.92,875.67,1.124]
[1757297153108,1.00260575,876.91,875.67,1.124]
[1757297153407,1.00260575,876.9,875.67,1.124]
[1757297155312,1.00260575,876.89,875.67,1.124]
[1757297156308,1.00260575,876.74,875.67,1.124]
[1757297156507,1.00260575,876.7,875.67,1.124]
[1757297157710,1.00260575,876.46,875.67,1.124]
[1757297157907,1.00260575,876.45,875.67,1.124]
[1757297158111,1.00260575,876.44,875.67,1.124]
[1757297159313,1.00260575,876.5,875.67,1.124]
[1757297159514,1.00260575,876.49,875.67,1.124]
[1757297161318,1.00260575,876.5,875.67,1.124]
[1757297161518,1.00260575,876.44,875.67,1.124]
[1757297161915,1.00260575,876.31,875.67,1.124]
[1757297162116,1.00260575,876.32,875.67,1.124]
[1757297163320,1.00260575,876.33,875.67,1.124]
[1757297166222,1.00260575,876.39,875.67,1.124]
[1757297166426,1.00260575,876.37,875.67,1.124]
[1757297166826,1.00260575,876.36,875.67,1.124]
[1757297167026,1.50390863,876.57,875.67,1.124]
[1757297167027,1.00260575,876.34,875.67,1.124]
[1757297167223,1.00260575,876.35,875.67,1.124]
[1757297167421,1.00260575,876.32,875.67,1.124]
[1757297167927,1.00260575,876.35,875.67,1.124]
[1757297168128,1.00260575,876.36,875.67,1.124]
[1757297168429,1.00260575,876.38,875.67,1.124]
[1757297168632,1.00260575,876.29,875.67,1.124]
[1757297169230,1.00260575,876.31,875.67,1.124]
[1757297169532,1.00260575,876.22,875.67,1.124]
[1757297169930,1.00260575,876.49,875.67,1.124]
[1757297170130,1.00260575,876.61,875.67,1.124]
[1757297170330,1.00260575,876.63,875.67,1.124]
[1757297171225,1.00260575,876.64,875.67,1.124]
[1757297171727,1.00260575,876.67,875.67,1.124]
[1757297171929,1.00260575,876.68,875.66,0.19837311]
[1757297172127,1.00260575,876.69,875.66,0.19837311]
[1757297174233,1.00260575,876.7,875.66,0.19837311]
[1757297174430,1.00260575,876.5,875.66,0.19837311]
[1757297174629,1.00260575,876.56,875.66,0.19837311]
[1757297175437,1.00260575,876.56,875.67,0.819]
[1757297175633,1.00260575,876.5,875.67,0.819]
[1757297175830,1.00260575,876.51,875.67,0.819]
[1757297176935,1.00260575,876.56,875.67,0.819]
[1757297177431,1.00260575,876.55,875.67,0.819]
[1757297177731,1.00260575,876.46,875.67,0.819]
[1757297177931,1.00260575,876.45,875.67,0.819]
[1757297179340,1.00260575,876.46,875.67,0.819]
[1757297179838,1.00260575,876.45,875.67,0.819]
[1757297183334,1.00260575,876.53,875.67,0.819]
[1757297184440,1.00260575,876.52,875.67,0.819]
[1757297185242,1.00260575,876.51,875.67,0.819]
[1757297186836,1.00260575,876.48,875.67,0.819]
[1757297187737,1.00260575,876.51,875.67,0.819]
[1757297189443,1.00260575,876.5,875.67,0.819]
[1757297190948,1.00260575,876.63,875.67,0.819]
[1757297191149,1.00260575,876.57,875.67,0.819]
[1757297191348,1.00260575,876.4,875.67,0.819]
[1757297191847,1.00260575,876.44,875.67,0.819]
[1757297192045,2.50651439,877.61,875.67,0.819]
[1757297192046,1.00260575,876.42,875.67,0.819]
[1757297192244,1.00260575,876.39,875.67,0.819]
[1757297193150,1.00260575,876.4,875.67,0.819]
[1757297193445,1.00260575,876.39,875.67,0.819]
[1757297193847,1.00260575,876.4,875.67,0.819]
[1757297194046,1.00260575,876.39,875.67,0.819]
[1757297195250,1.00260575,876.4,875.67,0.819]
[1757297196655,1.00260575,876.41,875.67,0.819]
[1757297197755,1.00260575,876.66,875.67,0.819]
[1757297199456,1.00260575,876.67,875.67,0.819]
[1757297199654,1.00260575,876.7,875.67,0.819]
[1757297200957,1.00260575,876.67,875.67,0.819]
[1757297201254,1.00260575,876.66,875.67,0.819]
[1757297201757,1.00260575,876.56,875.67,0.819]
[1757297203554,1.00260575,876.59,875.67,0.819]
[1757297203758,1.00260575,876.58,875.67,0.819]
[1757297204057,1.00260575,876.78,875.67,0.819]
[1757297204257,1.00260575,876.79,875.67,0.819]
[1757297205852,1.00260575,876.78,875.67,0.819]
[1757297206056,1.00260575,876.8,875.67,0.819]
[1757297206254,1.00260575,876.79,875.67,0.819]
[1757297206457,1.00260575,876.79,875.66,0.19837311]
[1757297206660,1.00260575,876.83,875.66,0.19837311]
[1757297207459,1.00260575,876.82,875.66,0.19837311]
[1757297207757,0.19820364,877.76,875.66,0.19837311]
[1757297207758,1.00260575,876.51,875.66,0.19837311]
[1757297208162,1.00260575,876.5,875.66,0.19837311]
[1757297208459,1.00260575,876.49,875.04,0.76127047]
[1757297208857,1.00260575,876.49,875.74,0.19830585]
[1757297209059,1.00260575,876.46,875.05,2.02827047]
[1757297209260,1.00260575,876.45,875.81,0.19830642]
[1757297209655,1.00260575,876.45,875.06,0.76127047]
[1757297209858,1.00260575,876.45,875.87,0.19830755]
[1757297210062,1.00260575,876.45,875.06,0.76127047]
[1757297210260,1.00260575,876.44,875.08,0.76127047]
[1757297210862,1.00260575,876.44,875.41,0.19830698]
[1757297211762,1.00260575,876.38,875.41,0.19830698]
[1757297212259,1.00260575,876.37,875.41,0.19830698]
[1757297212865,1.00260575,876.38,875.41,0.19830698]
[1757297213263,1.50390863,876.61,875.41,0.19830698]
[1757297213264,1.00260575,876.37,875.41,0.19830698]
[1757297215269,1.00260575,876.36,875.41,0.19830698]
[1757297215767,1.00260575,876.35,875.41,0.19830698]
[1757297216475,1.00260575,876.33,875.41,0.19830698]
[1757297217879,1.00260575,876.49,875.41,0.19830698]
[1757297218175,1.00260575,876.48,875.41,0.19830698]
[1757297218379,1.00260575,876.45,875.41,0.19830698]
[1757297218777,1.00260575,876.41,875.41,0.19830698]
[1757297219179,1.00260575,876.4,875.41,0.19830698]
[1757297219980,1.00260575,876.39,875.41,0.19830698]
[1757297220984,0.76244922,876.39,875.41,0.19830698]
[1757297221178,1.50390863,876.52,875.41,0.19830698]
[1757297221680,1.50390863,876.59,875.41,0.19830698]
[1757297221876,1.50390863,876.6,875.41,0.19830698]
[1757297222080,1.50390863,876.61,875.41,0.19830698]
[1757297222779,1.50390863,876.58,875.41,0.19830698]
[1757297223182,1.50390863,876.57,875.41,0.19830698]
[1757297225680,1.50390863,876.56,875.41,0.19830698]
[1757297226182,1.50390863,876.57,875.41,0.19830698]
[1757297226385,1.50390863,876.56,875.41,0.19830698]
[1757297227185,1.50390863,876.57,875.41,0.19830698]
[1757297227387,1.50390863,876.56,875.41,0.19830698]
[1757297227882,1.50390863,876.53,875.41,0.19830698]
[1757297228382,1.50390863,876.59,875.41,0.19830698]
[1757297229286,1.50390863,876.58,875.41,0.19830698]
[1757297230386,1.50390863,876.59,875.41,0.19830698]
[1757297230990,1.50390863,876.58,875.41,0.19830698]
[1757297231390,1.50390863,876.55,875.41,0.19830698]
[1757297231587,1.50390863,876.54,875.41,0.19830698]
[1757297231890,1.50390863,876.55,875.41,0.19830698]
[1757297232090,1.50390863,876.75,875.41,0.19830698]
[1757297232386,1.50390863,876.71,875.41,0.19830698]
[1757297232591,1.50390863,876.65,875.41,0.19830698]
[1757297232791,1.50390863,876.62,875.41,0.19830698]
[1757297233588,1.50390863,876.61,875.41,0.19830698]
[1757297233791,1.50390863,876.6,875.41,0.19830698]
[1757297234490,1.50390863,876.57,875.41,0.19830698]
[1757297235293,1.50390863,876.58,875.41,0.19830698]
[1757297236588,1.50390863,876.5,875.41,0.19830698]
[1757297237192,1.50390863,876.4,875.41,0.19830698]
[1757297237892,1.50390863,876.38,875.41,0.19830698]
[1757297239693,1.50390863,876.39,875.41,0.19830698]
[1757297241095,1.50390863,876.42,875.41,0.19830698]
[1757297241296,1.50390863,876.49,875.41,0.19830698]
[1757297242698,1.50390863,876.53,875.41,0.19830698]
[1757297244397,1.50390863,876.56,875.41,0.19830698]
[1757297245794,1.50390863,876.46,875.41,0.19830698]
[1757297245998,1.50390863,876.48,875.41,0.19830698]
[1757297247294,1.50390863,876.42,875.41,0.19830698]
[1757297247499,1.08481777,876.42,875.41,0.19830698]
[1757297247698,2.50651439,877.05,875.41,0.19830698]
[1757297247896,2.50651439,877.05,875.6,0.76127047]
[1757297248198,2.50651439,877.29,875.6,0.76127047]
[1757297249399,2.50651439,877.29,875.61,0.816]
[1757297249596,2.50651439,877.3,875.61,0.816]
[1757297250099,2.50651439,877.29,875.61,0.816]
[1757297250599,2.50651439,877.3,875.61,0.816]
[1757297251195,0.19820364,877.76,875.66,0.76127047]
[1757297251196,1.01149697,876.98,875.66,0.76127047]
[1757297251501,1.01149697,877.01,875.66,0.76127047]
[1757297251700,1.01149697,877.04,875.69,0.76127047]
[1757297251897,1.01149697,877.07,875.71,0.76127047]
[1757297252401,1.01149697,877.09,875.7,0.76127047]
[1757297253201,1.01149697,877.08,875.7,0.76127047]
[1757297253403,1.01149697,877.1,875.69,0.76127047]
[1757297254099,1.01149697,877.11,875.69,0.76127047]
[1757297254298,1.01149697,877.1,875.7,0.76127047]
[1757297254503,1.01149697,877.1,875.61,0.816]
[1757297254504,1.01149697,877.12,875.68,0.76127047]
[1757297255302,1.01149697,877.13,875.67,0.76127047]
[1757297256202,1.01149697,877.13,875.68,0.76127047]
[1757297256505,1.01149697,877.14,875.67,0.76127047]
[1757297257202,1.01149697,877.13,875.67,0.76127047]
[1757297257406,1.01149697,877.14,875.66,0.76127047]
[1757297257905,1.01149697,876.9,875.61,0.816]
[1757297258106,1.01149697,876.91,875.61,0.816]
[1757297258405,1.01149697,876.93,875.61,0.816]
[1757297259506,1.01149697,876.94,875.61,0.816]
[1757297260403,0.19817824,877.88,875.61,0.816]
[1757297260404,1.01149697,876.95,875.61,0.816]
[1757297261105,1.01149697,876.94,875.61,0.816]
[1757297261806,1.01149697,876.95,875.61,0.816]
[1757297262107,1.01149697,876.94,875.61,0.816]
[1757297262406,1.01149697,876.95,875.61,0.816]
[1757297263003,1.01149697,876.94,875.61,0.816]
[1757297263306,1.01149697,876.8,875.61,0.816]
[1757297264202,1.01149697,876.77,875.61,0.816]
[1757297265210,1.01149697,876.78,875.61,0.816]
[1757297266612,1.01149697,876.77,875.61,0.816]
[1757297267308,1.01149697,876.78,875.61,0.816]
[1757297267808,1.01149697,876.89,875.61,0.816]
[1757297268111,1.01149697,876.87,875.61,0.816]
[1757297270309,1.01149697,876.88,875.61,0.816]
[1757297272214,1.01149697,876.91,875.61,0.816]
[1757297272908,1.01149697,876.83,875.61,0.816]
[1757297273414,1.01149697,876.84,875.61,0.816]
[1757297274411,1.01149697,876.84,875.49,0.7645033]
[1757297276907,1.01149697,876.84,875.41,0.19830698]
[1757297276908,1.01149697,876.84,875.48,0.7645033]
[1757297277613,1.01149697,876.84,875.49,2.0245033]
[1757297280213,1.01149697,876.85,875.49,2.0245033]
[1757297280410,1.01149697,876.83,875.5,0.7645033]
[1757297280616,1.01149697,876.82,875.51,0.7645033]
[1757297281016,1.01149697,877.02,875.51,0.7645033]
[1757297281417,1.01149697,877.03,875.5,0.7645033]
[1757297281918,1.01149697,877.13,875.49,2.0245033]
[1757297282115,1.01149697,877.17,875.53,0.7645033]
[1757297282317,1.01149697,877.18,875.53,0.7645033]
[1757297283220,1.01149697,877.18,875.52,0.7645033]
[1757297284220,1.01149697,877.16,875.5,0.7645033]
[1757297284422,1.01149697,877.15,875.49,1.26]
[1757297284918,1.01149697,877.14,875.49,1.26]
[1757297285121,1.01149697,877.08,875.49,2.0245033]
[1757297285918,1.01149697,876.96,875.49,1.26]
[1757297286119,1.01149697,876.99,875.49,1.26]
[1757297286317,1.01149697,876.94,875.49,1.26]
[1757297287723,1.01149697,877.15,875.63,0.7645033]
[1757297288519,1.01149697,877.22,875.61,0.7645033]
[1757297288722,1.01149697,877.13,875.58,0.7645033]
[1757297289220,1.01149697,877.12,875.59,0.7645033]
[1757297289520,1.01149697,877.13,875.59,0.7645033]
[1757297291121,1.01149697,877.12,875.59,0.7645033]
[1757297291523,1.01149697,877.13,875.6,0.7645033]
[1757297291722,0.19818219,877.98,875.61,0.7645033]
[1757297291723,1.01149697,877.1,875.61,0.7645033]
[1757297292123,1.01149697,877.1,875.62,0.7645033]
[1757297293424,1.01149697,877.09,875.63,0.7645033]
[1757297293923,1.01149697,877.1,875.63,0.7645033]
[1757297294124,1.01149697,877.09,875.63,0.7645033]
[1757297294328,1.01149697,877.09,875.64,0.7645033]
[1757297295129,1.01149697,877.08,875.64,0.7645033]
[1757297295329,1.01149697,877.08,875.65,0.7645033]
[1757297296223,1.51269845,877.3,875.49,1.26]
[1757297296224,1.01149697,877.09,875.67,0.7645033]
[1757297296426,1.01149697,876.99,875.77,0.7645033]
[1757297296626,1.01149697,877.06,875.84,0.7645033]
[1757297297225,1.01149697,877.05,875.83,0.7645033]
[1757297297426,1.01149697,877.04,875.84,0.7645033]
[1757297297834,1.01149697,876.83,875.63,0.7645033]
[1757297298430,1.01149697,876.82,875.65,0.7645033]
[1757297299333,1.01149697,876.81,875.66,0.7645033]